bitfinex-derivatives/quotes_BNBF0:USTF0_20250529
["timestamp","ask_amount","ask_price","bid_price","bid_amount"]
[1748524254014,0.99865322,684.99,683.95,0.29241903]
[1748524254215,0.99865322,684.98,683.96,0.351]
[1748524254415,0.99865322,684.97,683.96,0.351]
[1748524254615,0.99865322,684.96,683.96,0.351]
[1748524254913,0.99865322,684.95,683.96,0.351]
[1748524255112,0.99865322,684.94,683.96,0.351]
[1748524255417,0.99881533,684.93,683.96,0.351]
[1748524255618,0.99881533,684.92,683.96,0.351]
[1748524255820,0.99821635,685.0,683.96,0.351]
[1748524256120,0.9988588,684.99,683.96,0.351]
[1748524256316,0.99821635,685.0,683.96,0.351]
[1748524257921,0.99891512,684.99,683.96,0.351]
[1748524258319,0.99898022,684.98,683.96,0.351]
[1748524258518,0.99821635,685.0,683.96,0.351]
[1748524259016,0.9990452,684.99,683.96,0.351]
[1748524259320,0.99904341,684.98,683.96,0.351]
[1748524259616,0.99904341,684.97,683.96,0.351]
[1748524259820,0.99904341,684.96,683.96,0.351]
[1748524260021,0.99911582,684.95,683.96,0.351]
[1748524260221,0.99821635,685.0,683.96,0.351]
[1748524260621,0.99911811,684.99,683.96,0.351]
[1748524260821,0.99911811,684.98,683.96,0.351]
[1748524261022,0.99911811,684.97,683.96,0.351]
[1748524261220,0.99911811,684.96,683.96,0.351]
[1748524261420,0.99911811,684.95,683.96,0.351]
[1748524261618,0.99911811,684.94,683.96,0.351]
[1748524261817,0.99911811,684.93,683.96,0.351]
[1748524262017,0.99911811,684.92,683.96,0.351]
[1748524262216,0.99911811,684.91,683.96,0.351]
[1748524262522,0.99911811,684.9,683.96,0.351]
[1748524262823,0.99911811,684.89,683.96,0.81379435]
[1748524263121,0.99911811,684.88,683.96,0.81379435]
[1748524263316,0.99911811,684.87,683.96,0.81379435]
[1748524263515,0.99949712,684.86,683.98,0.46279435]
[1748524263716,0.99949712,684.85,683.98,0.46279435]
[1748524263916,0.99949712,684.84,683.98,0.46279435]
[1748524264121,0.99949641,684.83,684.06,0.46279435]
[1748524264423,0.9995277,684.82,684.1,0.46279435]
[1748524264622,0.9995277,684.81,684.11,0.46279435]
[1748524264823,0.9995277,684.8,684.11,0.46279435]
[1748524265023,0.9995277,684.79,684.11,0.46279435]
[1748524265223,0.99977401,684.78,684.11,0.46279435]
[1748524265424,0.99977401,684.99,684.11,0.46279435]
[1748524265718,0.99821635,685.0,684.14,0.46279435]
[1748524265923,0.99980211,684.99,684.14,0.46279435]
[1748524266123,0.99980211,684.98,684.14,0.46279435]
[1748524266420,0.99980211,684.97,684.14,0.46279435]
[1748524266625,0.99997355,684.96,684.14,0.46279435]
[1748524266923,0.99997355,684.95,684.14,0.46279435]
[1748524267120,1.00000336,684.94,684.14,0.46279435]
[1748524267328,0.29196654,685.01,684.14,0.46279435]
[1748524267628,1.00019631,685.0,684.14,0.46279435]
[1748524267926,1.00019631,684.99,684.16,0.46279435]
[1748524268118,1.00019631,684.98,684.16,0.46279435]
[1748524268321,0.29196654,685.01,684.16,0.46279435]
[1748524268627,1.00037441,685.0,684.17,0.46279435]
[1748524268827,1.00037441,684.99,684.17,0.46279435]
[1748524269020,1.00037441,684.98,684.17,0.46279435]
[1748524269327,1.00037449,684.97,684.16,0.46279435]
[1748524269526,1.00037449,684.96,684.16,0.46279435]
[1748524269721,1.00060938,684.95,684.16,0.46279435]
[1748524269925,1.00060938,684.94,684.18,0.46279435]
[1748524270125,1.00060692,684.93,684.18,0.46279435]
[1748524270425,1.00060692,684.92,684.18,0.46279435]
[1748524270625,1.00060692,684.91,684.18,0.46279435]
[1748524270822,1.00060692,684.9,684.18,0.46279435]
[1748524271026,1.00056603,684.89,684.18,0.46279435]
[1748524271221,1.00056603,684.88,684.18,0.46279435]
[1748524271422,1.00056603,684.87,684.33,0.46279435]
[1748524271622,1.00056603,684.86,684.33,0.46279435]
[1748524271927,1.00056603,684.85,684.33,0.46279435]
[1748524272127,1.00056361,684.84,684.33,0.46279435]
[1748524272323,1.00056363,684.83,684.33,0.46279435]
[1748524272528,1.00056363,684.82,684.33,0.46279435]
[1748524272721,1.00056363,684.81,684.33,0.46279435]
[1748524272923,1.00056363,684.8,684.34,0.46279435]
[1748524273128,1.00056363,684.79,684.33,0.46279435]
[1748524273325,1.00056363,684.78,684.33,0.46279435]
[1748524273525,1.00055255,684.77,684.33,0.46279435]
[1748524273728,1.00055255,684.76,684.33,0.46279435]
[1748524273926,1.00055255,684.76,684.17,0.427]
[1748524273927,1.00055255,684.75,684.34,0.46279435]
[1748524274125,1.00055255,684.74,684.34,0.46279435]
[1748524274330,1.00055255,684.73,684.34,0.46279435]
[1748524274531,1.00055255,684.72,684.34,0.46279435]
[1748524274831,0.29196654,685.01,684.34,0.46279435]
[1748524275026,1.00055793,685.0,684.34,0.46279435]
[1748524275227,1.00059313,684.99,684.34,0.46279435]
[1748524275434,0.29196654,685.01,684.34,0.46279435]
[1748524275633,1.00060233,685.0,684.34,0.46279435]
[1748524275933,1.00060618,684.99,684.34,0.46279435]
[1748524276133,1.00060618,684.98,684.34,0.46279435]
[1748524276335,1.00060618,684.97,684.19,0.46279435]
[1748524276531,1.00065834,684.96,684.18,0.46279435]
[1748524276832,1.00065834,684.95,684.18,0.46279435]
[1748524277030,1.00048913,684.94,684.18,0.46279435]
[1748524277333,1.00048368,684.93,684.19,0.46279435]
[1748524277531,1.00048368,684.92,684.19,0.46279435]
[1748524277729,1.00048368,684.91,684.19,0.46279435]
[1748524277933,0.29196654,685.01,684.19,0.46279435]
[1748524277934,1.00048368,684.9,684.19,0.46279435]
[1748524278134,1.00048368,684.89,684.18,0.46279435]
[1748524278330,1.00048368,684.88,684.18,0.46279435]
[1748524278530,1.00048368,684.87,684.18,0.46279435]
[1748524278830,1.00048368,684.86,684.18,0.46279435]
[1748524279032,1.00048368,684.85,684.18,0.46279435]
[1748524279330,1.00048368,684.84,684.17,0.427]
[1748524279536,1.00048368,684.83,684.17,0.427]
[1748524279732,1.00048368,684.82,684.17,0.427]
[1748524280038,1.00062678,684.81,684.17,0.427]
[1748524280334,1.00070579,684.8,684.17,0.427]
[1748524280534,1.00070579,684.79,684.17,0.427]
[1748524280736,1.00070579,684.78,684.17,0.427]
[1748524281037,1.00070409,684.77,684.17,0.427]
[1748524281232,1.00070409,684.76,684.17,0.427]
[1748524281437,1.00070409,684.75,684.17,0.427]
[1748524281638,1.00079484,684.74,684.17,0.427]
[1748524281937,1.00079484,684.73,684.17,0.427]
[1748524282138,1.00077028,684.72,684.17,0.427]
[1748524282334,1.00079931,684.71,684.17,0.427]
[1748524282538,1.00079931,684.7,684.17,0.427]
[1748524282737,1.00088041,684.69,684.17,0.427]
[1748524282941,0.29196654,685.01,684.17,0.427]
[1748524283142,1.00097051,685.0,684.17,0.427]
[1748524283338,0.29196654,685.01,684.17,0.427]
[1748524283339,1.00097051,684.99,684.17,0.427]
[1748524283541,1.00098506,684.98,684.17,0.427]
[1748524283745,0.29196654,685.01,684.17,0.427]
[1748524283944,1.00098865,685.0,684.17,0.427]
[1748524284144,0.29196654,685.01,684.17,0.427]
[1748524284439,1.00100194,685.0,684.17,0.427]
[1748524284644,1.00100194,684.99,684.17,0.427]
[1748524284839,1.00100194,684.98,684.17,0.427]
[1748524285143,1.00100194,684.97,684.17,0.427]
[1748524285341,1.00105808,684.96,684.17,0.427]
[1748524285539,1.00105808,684.95,684.17,0.427]
[1748524285744,1.00116562,684.94,684.17,0.427]
[1748524285945,1.00115443,684.93,684.17,0.427]
[1748524286141,1.00115443,684.92,684.17,0.427]
[1748524286345,1.0011415,684.91,684.17,0.427]
[1748524286641,1.0011415,684.9,684.17,0.427]
[1748524286843,0.29196654,685.01,684.17,0.427]
[1748524287440,1.00111594,685.0,684.17,0.427]
[1748524287645,1.00122703,684.99,684.17,0.427]
[1748524287841,1.00122703,684.98,684.17,0.427]
[1748524288047,1.00122703,684.97,684.17,0.427]
[1748524288246,1.0012107,684.96,684.17,0.427]
[1748524288441,1.0012107,684.95,684.17,0.427]
[1748524288644,1.00134487,684.94,684.17,0.427]
[1748524288945,1.00134487,684.93,684.17,0.427]
[1748524289143,0.29196654,685.01,684.17,0.427]
[1748524289341,1.0015146,685.0,684.17,0.427]
[1748524289540,1.00151237,684.99,684.17,0.427]
[1748524289741,1.00151193,684.98,684.17,0.427]
[1748524289948,1.00151193,684.97,684.17,0.427]
[1748524290147,1.00151193,684.96,684.17,0.427]
[1748524290342,1.00151193,684.95,684.17,0.427]
[1748524290544,1.00151193,684.94,684.17,0.427]
[1748524290742,1.00151193,684.93,684.17,0.427]
[1748524290942,1.00168317,684.92,684.17,0.427]
[1748524291248,1.00168502,684.91,684.17,0.427]
[1748524291547,1.00168502,684.9,684.17,0.427]
[1748524291747,1.00168502,684.89,684.17,0.427]
[1748524291945,1.00168502,684.88,684.17,0.427]
[1748524292147,1.00168502,684.87,684.17,0.427]
[1748524292341,1.00126642,684.86,684.17,0.427]
[1748524292541,1.00123598,684.85,684.17,0.427]
[1748524292740,1.00123598,684.84,684.17,0.427]
[1748524292946,1.00123598,684.83,684.17,0.427]
[1748524293141,1.00123598,684.82,684.17,0.427]
[1748524293444,1.00123598,684.81,684.17,0.427]
[1748524293645,1.00123598,684.8,684.17,0.427]
[1748524293845,1.00123598,684.79,684.17,0.427]
[1748524294045,1.00123598,684.78,684.17,0.427]
[1748524294243,1.00123598,684.77,684.17,0.427]
[1748524294542,1.00123598,684.76,684.17,0.427]
[1748524294750,1.00123598,684.75,684.17,0.427]
[1748524295047,1.00123598,684.74,684.17,0.427]
[1748524295245,1.00137801,684.73,684.17,0.427]
[1748524295442,1.00137801,684.72,684.17,0.427]
[1748524295646,1.00137801,684.71,684.17,0.427]
[1748524295846,1.00137801,684.7,684.17,0.427]
[1748524296148,1.00125682,684.69,684.17,0.427]
[1748524296346,1.00125682,684.68,684.17,0.427]
[1748524296546,1.00125682,684.67,684.17,0.427]
[1748524296748,1.00125682,684.66,684.17,0.427]
[1748524296949,1.00125682,684.65,684.17,0.427]
[1748524297147,1.00125682,684.64,684.17,0.427]
[1748524297349,1.0014109,684.63,684.17,0.427]
[1748524297548,0.29196654,685.01,684.17,0.427]
[1748524298050,1.00140773,685.0,684.17,0.427]
[1748524298256,1.00140773,684.99,684.17,0.427]
[1748524298450,1.00140773,684.98,684.17,0.427]
[1748524298648,1.0013885,684.97,684.17,0.427]
[1748524298953,1.00138901,684.96,684.17,0.427]
[1748524299154,1.00138901,684.95,684.17,0.427]
[1748524299353,1.00136619,684.94,684.17,0.427]
[1748524299548,1.00136619,684.93,684.17,0.427]
[1748524299752,1.00136619,684.92,684.17,0.427]
[1748524299948,1.00136619,684.91,684.17,0.427]
[1748524300149,1.00136213,684.9,684.17,0.427]
[1748524300349,0.29196654,685.01,684.17,0.427]
[1748524300553,1.00134721,685.0,684.17,0.427]
[1748524300750,1.00133835,684.99,684.17,0.427]
[1748524300948,0.29196654,685.01,684.17,0.427]
[1748524300949,1.00133835,684.98,684.17,0.427]
[1748524301254,1.00133835,684.97,684.17,0.427]
[1748524301450,1.00133835,684.96,684.17,0.427]
[1748524301756,1.00133835,684.95,684.17,0.427]
[1748524301955,1.00133835,684.94,684.17,0.427]
[1748524302147,1.00132032,684.93,684.17,0.427]
[1748524302350,1.00130369,684.92,684.17,0.427]
[1748524302549,1.0013029,684.91,684.17,0.427]
[1748524302755,1.0013029,684.9,684.17,0.427]
[1748524302954,1.0013029,684.89,684.17,0.427]
[1748524303155,1.0013029,684.88,683.95,0.29241903]
[1748524303353,1.00129109,684.87,683.95,0.29241903]
[1748524303549,0.29196654,685.01,683.95,0.29241903]
[1748524303550,1.0012596,684.86,683.95,0.29241903]
[1748524303751,1.0012597,684.85,683.95,0.29241903]
[1748524304055,1.00125958,684.84,683.95,0.29241903]
[1748524304356,1.00125899,684.83,683.99,0.46279435]
[1748524304655,1.00125899,684.82,683.99,0.46279435]
[1748524304855,1.00125899,684.81,684.0,0.46279435]
[1748524305055,1.00125899,684.8,684.0,0.46279435]
[1748524305257,1.00125899,684.79,684.01,0.412]
[1748524305457,1.00125899,684.78,684.01,0.412]
[1748524305658,0.29196654,685.01,684.01,0.412]
[1748524305853,1.00119835,685.0,684.01,0.412]
[1748524306058,1.00119835,684.99,684.05,0.46279435]
[1748524306254,1.00113247,684.98,684.05,0.46279435]
[1748524306452,1.00113247,684.97,684.05,0.46279435]
[1748524306657,1.00113247,684.96,684.05,0.46279435]
[1748524306858,1.00113247,684.95,684.05,0.46279435]
[1748524307157,1.00113247,684.94,684.01,0.412]
[1748524307457,1.00111304,684.93,684.03,0.46279435]
[1748524307653,1.00111383,684.92,684.03,0.46279435]
[1748524307857,1.00111383,684.91,684.03,0.46279435]
[1748524308157,1.00111383,684.9,684.03,0.46279435]
[1748524308358,1.00111383,684.89,684.03,0.46279435]
[1748524308652,1.00111383,684.88,684.03,0.46279435]
[1748524308957,1.00111383,684.87,684.03,0.46279435]
[1748524309255,1.00117571,684.86,684.03,0.46279435]
[1748524309457,1.00117571,684.85,684.03,0.46279435]
[1748524309752,1.00117571,684.84,684.03,0.46279435]
[1748524309954,1.00117571,684.83,684.03,0.46279435]
[1748524310157,1.00106509,684.82,684.03,0.46279435]
[1748524310458,1.00106115,684.81,684.03,0.46279435]
[1748524310757,1.00106115,684.8,684.04,0.46279435]
[1748524310952,1.00106392,684.79,684.04,0.46279435]
[1748524311158,1.00106392,684.78,684.04,0.46279435]
[1748524311357,1.00106392,684.77,684.04,0.46279435]
[1748524311558,1.00106392,684.76,684.07,0.46279435]
[1748524311755,0.29196654,685.01,684.07,0.46279435]
[1748524311954,1.00100003,685.0,684.07,0.46279435]
[1748524312154,1.00100003,684.99,684.07,0.46279435]
[1748524312353,1.00100003,684.98,684.07,0.46279435]
[1748524312658,1.00100003,684.97,684.07,0.46279435]
[1748524312957,1.00100003,684.96,684.07,0.46279435]
[1748524313153,0.29196654,685.01,684.1,0.46279435]
[1748524313356,1.00108264,685.0,684.1,0.46279435]
[1748524313659,1.00108264,684.99,684.1,0.46279435]
[1748524313857,1.00108264,684.98,684.01,0.412]
[1748524314058,1.00108264,684.97,684.01,0.412]
[1748524314259,1.00108264,684.96,684.01,0.412]
[1748524314457,1.0009956,684.95,684.01,0.412]
[1748524314761,1.00098279,684.94,684.01,0.412]
[1748524314958,1.00098279,684.93,684.01,0.412]
[1748524315159,1.00098279,684.92,684.01,0.412]
[1748524315458,1.00098279,684.91,684.01,0.412]
[1748524315659,1.00098279,684.9,684.01,0.412]
[1748524315958,1.00098279,684.89,684.01,0.412]
[1748524316162,1.00098279,684.88,684.01,0.412]
[1748524316363,1.00098279,684.87,684.01,0.412]
[1748524316563,1.00009835,684.86,684.01,0.412]
[1748524316764,1.00009835,684.85,684.01,0.412]
[1748524316960,1.00008563,684.84,684.01,0.412]
[1748524317164,1.00008649,684.83,684.01,0.412]
[1748524317464,1.00008649,684.82,684.01,0.412]
[1748524317760,1.00008649,684.81,684.01,0.412]
[1748524317959,1.00008649,684.8,684.01,0.412]
[1748524318160,0.29196654,685.01,684.01,0.412]
[1748524318161,0.99972777,684.79,684.01,0.412]
[1748524318365,0.99972777,684.78,684.01,0.412]
[1748524318565,0.99972777,684.77,684.01,0.412]
[1748524318865,0.99943846,684.76,684.01,0.412]
[1748524319160,0.999437,684.75,684.01,0.412]
[1748524319463,0.999437,684.74,683.56,0.25417044]
[1748524319660,0.999437,684.73,683.56,0.25417044]
[1748524319864,0.999437,684.72,683.56,0.25417044]
[1748524320058,0.99903722,684.71,683.56,0.25417044]
[1748524320260,0.99904194,684.7,683.56,0.25417044]
[1748524320460,0.99904194,684.69,683.56,0.25417044]
[1748524320661,0.999042,684.68,683.56,0.25417044]
[1748524320864,0.999042,684.67,683.56,0.25417044]
[1748524321159,0.999042,684.66,683.56,0.25417044]
[1748524321361,0.999042,684.65,683.56,0.25417044]
[1748524321561,0.999042,684.64,683.56,0.25417044]
[1748524321764,0.99880949,684.63,683.57,0.434]
[1748524322060,0.9988108,684.62,683.57,0.434]
[1748524322260,0.9988108,684.61,683.57,0.434]
[1748524322563,0.99893084,684.6,683.57,0.434]
[1748524322760,0.99893084,684.59,683.57,0.434]
[1748524322965,0.99893084,684.58,683.57,0.434]
[1748524323159,0.99893084,684.57,683.57,0.434]
[1748524323362,0.99893084,684.56,683.57,0.434]
[1748524323565,0.99893084,684.55,683.57,0.434]
[1748524323762,0.99893084,685.0,683.57,0.434]
[1748524323958,1.2909059,684.99,683.57,0.434]
[1748524324164,0.29197932,684.98,683.57,0.434]
[1748524324361,0.99859162,684.97,683.57,0.434]
[1748524324661,1.29057947,684.96,683.57,0.434]
[1748524324866,1.29042637,684.95,683.57,0.434]
[1748524325061,1.29043061,684.94,683.57,0.434]
[1748524325271,1.29043488,684.93,683.57,0.434]
[1748524325468,1.29043914,684.92,683.57,0.434]
[1748524325663,1.2903157,684.91,683.57,0.434]
[1748524325864,0.99830654,684.9,683.57,0.434]
[1748524326065,0.29200916,684.91,683.57,0.434]
[1748524326263,0.99831093,684.9,683.57,0.434]
[1748524326462,0.99831138,684.89,683.57,0.434]
[1748524326765,0.99831138,684.88,683.57,0.434]
[1748524326969,0.99826547,684.87,683.57,0.434]
[1748524327164,0.99826547,684.86,683.57,0.434]
[1748524327366,0.99825716,684.85,683.57,0.434]
[1748524327564,0.29200916,684.91,683.57,0.434]
[1748524327769,0.99817462,684.9,683.57,0.434]
[1748524327967,0.99817306,684.89,683.57,0.434]
[1748524328169,0.99823314,684.88,683.57,0.434]
[1748524328370,0.99861403,684.87,683.57,0.434]
[1748524328567,0.99861403,684.86,683.57,0.434]
[1748524328767,0.9987961,684.85,683.57,0.434]
[1748524328967,0.9987961,684.84,683.57,0.434]
[1748524329167,0.29200916,684.91,683.57,0.434]
[1748524329372,0.99884496,684.9,683.57,0.434]
[1748524329573,0.99884496,684.89,683.57,0.434]
[1748524329770,0.99880093,684.88,683.61,0.46279435]
[1748524330077,0.99880093,684.87,683.61,0.46279435]
[1748524330275,0.29200916,684.91,683.61,0.46279435]
[1748524330574,0.99878262,684.9,683.6,0.46279435]
[1748524330773,0.99878262,684.89,683.6,0.46279435]
[1748524330970,0.99878262,684.88,683.62,0.46279435]
[1748524331270,0.99865357,684.87,683.61,0.46279435]
[1748524331470,0.99865357,684.86,683.61,0.46279435]
[1748524331671,0.29200916,684.91,683.61,0.46279435]
[1748524331875,0.99861364,684.9,683.62,0.46279435]
[1748524332174,0.99861364,684.89,683.62,0.46279435]
[1748524332475,0.99861364,684.88,683.64,0.46279435]
[1748524332669,0.99861364,684.87,683.64,0.46279435]
[1748524332974,0.99855418,684.86,683.64,0.46279435]
[1748524333170,0.99855418,684.85,683.64,0.46279435]
[1748524333369,0.99855418,684.84,683.64,0.46279435]
[1748524333568,0.99859648,684.83,683.63,0.46279435]
[1748524333771,0.99859503,684.82,683.63,0.46279435]
[1748524333970,0.99860571,684.81,683.63,0.46279435]
[1748524334171,0.99860571,684.8,683.63,0.46279435]
[1748524334371,0.29200916,684.91,683.63,0.46279435]
[1748524334670,0.99861179,684.9,683.65,0.46279435]
[1748524334870,0.29200916,684.91,683.57,0.434]
[1748524334871,0.99861179,684.89,683.63,0.46279435]
[1748524335073,0.99861179,684.88,683.63,0.46279435]
[1748524335273,0.99861179,684.87,683.63,0.46279435]
[1748524335474,0.99861179,684.86,683.63,0.46279435]
[1748524335673,0.99853606,684.85,683.63,0.46279435]
[1748524335872,0.99853606,684.84,683.63,0.46279435]
[1748524336074,0.99851048,684.83,683.57,0.434]
[1748524336272,0.99851048,684.82,683.57,0.434]
[1748524336574,0.99838431,684.81,683.57,0.434]
[1748524336872,1.29044038,684.8,683.57,0.434]
[1748524337070,0.29206033,684.79,683.57,0.434]
[1748524337670,0.99812041,684.78,683.57,0.434]
[1748524337875,1.29018927,684.77,683.57,0.434]
[1748524338175,1.29019354,684.76,683.57,0.434]
[1748524338474,1.29006265,684.75,683.57,0.434]
[1748524338770,0.25420293,685.08,683.57,0.434]
[1748524338771,1.29006691,684.74,683.57,0.434]
[1748524338970,0.99798525,684.73,683.57,0.434]
[1748524339172,0.99798525,684.72,683.57,0.434]
[1748524339372,0.99798525,684.71,683.57,0.434]
[1748524339672,0.99798525,684.7,683.57,0.434]
[1748524339875,0.99757744,684.69,683.57,0.434]
[1748524340074,0.99757744,684.68,683.57,0.434]
[1748524340275,0.99757744,684.67,683.57,0.434]
[1748524340471,0.99757744,684.66,683.57,0.434]
[1748524340671,0.99762232,684.65,683.57,0.434]
[1748524340875,0.99762219,684.64,683.57,0.434]
[1748524341177,0.99744111,684.63,683.57,0.434]
[1748524341373,0.99744111,684.62,683.57,0.434]
[1748524341577,0.99744111,684.61,683.57,0.434]
[1748524341778,0.99745638,684.6,683.57,0.434]
[1748524342078,0.99745436,684.59,683.57,0.434]
[1748524342272,0.99745436,684.58,683.57,0.434]
[1748524342475,0.99745436,684.57,683.57,0.434]
[1748524342776,0.99745436,684.56,683.57,0.434]
[1748524342977,0.99745436,684.55,683.57,0.434]
[1748524343174,0.99729442,684.54,683.57,0.434]
[1748524343476,0.99729442,684.73,683.57,0.434]
[1748524343676,0.29208166,684.74,683.57,0.434]
[1748524343878,0.99713785,684.73,683.57,0.434]
[1748524344177,0.99713785,684.72,683.57,0.434]
[1748524344373,0.99713785,684.71,683.57,0.434]
[1748524344674,0.99713785,684.7,683.57,0.434]
[1748524344876,0.99713785,684.69,683.57,0.434]
[1748524345077,0.99703098,684.68,683.57,0.434]
[1748524345279,0.99703098,684.67,683.57,0.434]
[1748524345476,0.99703098,684.66,683.57,0.434]
[1748524345680,0.99703098,684.65,683.49,0.46279435]
[1748524345880,0.99703098,684.64,683.49,0.46279435]
[1748524346177,0.99703098,684.63,683.5,0.46279435]
[1748524346378,0.99691103,684.62,683.5,0.46279435]
[1748524346575,0.99691103,684.61,683.5,0.46279435]
[1748524346777,0.99691103,684.6,683.5,0.46279435]
[1748524347081,0.99691103,684.59,683.49,0.46279435]
[1748524347382,0.99689095,684.58,683.51,0.46279435]
[1748524347583,1.99378192,684.57,683.52,0.46279435]
[1748524347883,0.99689112,684.56,683.52,0.46279435]
[1748524348283,0.99689112,684.56,683.54,0.46279435]
[1748524348484,0.99689112,684.56,683.39,0.25432276]
[1748524348485,0.99689112,684.56,683.53,0.478]
[1748524349081,0.99681818,684.56,683.53,0.478]
[1748524349284,0.99681829,684.56,683.63,0.46279435]
[1748524349586,0.9968908,684.57,683.63,0.46279435]
[1748524350179,0.9968908,684.57,683.6,0.46279435]
[1748524350385,0.9968908,684.57,683.64,0.46279435]
[1748524350781,0.9968908,684.57,683.63,0.46279435]
[1748524351086,0.9968908,684.57,683.64,0.46279435]
[1748524351385,0.9968908,684.57,683.62,0.46279435]
[1748524351686,0.9968908,684.57,683.53,0.478]
[1748524351687,0.9968908,684.57,683.63,0.46279435]
[1748524353986,0.9968908,684.57,683.61,0.46279435]
[1748524355291,0.9968908,684.57,683.62,0.46279435]
[1748524357392,0.9968908,684.57,683.61,0.46279435]
[1748524358393,0.9968908,684.57,683.64,0.46279435]
[1748524358593,0.9968908,684.57,683.53,0.478]
[1748524363294,0.99718444,684.56,683.53,0.478]
[1748524364290,0.9968908,684.57,683.53,0.478]
[1748524364590,0.99716541,684.56,683.53,0.478]
[1748524365292,0.9968908,684.57,683.53,0.478]
[1748524365497,0.99729161,684.56,683.53,0.478]
[1748524365696,0.99727516,684.55,683.53,0.478]
[1748524365890,0.99727516,684.56,683.53,0.478]
[1748524366091,0.99727516,684.55,683.53,0.478]
[1748524366292,0.99727516,684.56,683.53,0.478]
[1748524366496,0.99727516,684.55,683.53,0.478]
[1748524366696,0.99727516,684.56,683.53,0.478]
[1748524366897,0.9968908,684.57,683.56,0.46279435]
[1748524367099,0.99729238,684.56,683.58,0.46279435]
[1748524367297,0.99729238,684.55,683.58,0.46279435]
[1748524367498,0.99742879,684.54,683.58,0.46279435]
[1748524367799,0.99746698,684.56,683.58,0.46279435]
[1748524367993,0.99746698,684.55,683.58,0.46279435]
[1748524368195,0.99761946,684.54,683.6,0.46279435]
[1748524368397,0.9968908,684.57,683.6,0.46279435]
[1748524368594,0.9976155,684.56,683.6,0.46279435]
[1748524368897,0.9968908,684.57,683.6,0.46279435]
[1748524369099,0.99763277,684.56,683.62,0.46279435]
[1748524369296,0.99763286,684.55,683.62,0.46279435]
[1748524369598,0.99763286,684.54,683.62,0.46279435]
[1748524369799,0.99763286,684.53,683.62,0.46279435]
[1748524369994,0.99763286,684.52,683.62,0.46279435]
[1748524370195,0.99763286,684.51,683.66,0.46279435]
[1748524370401,0.99763286,684.56,683.66,0.46279435]
[1748524370598,0.9968908,684.57,683.67,0.29253879]
[1748524370900,0.9968908,684.57,683.76,0.46279435]
[1748524371098,0.9968908,684.57,683.69,0.46279435]
[1748524371702,0.9968908,684.57,683.68,0.46279435]
[1748524372201,0.9968908,684.57,683.67,0.29253879]
[1748524373903,0.9968908,684.57,683.69,0.46279435]
[1748524374098,0.9968908,684.57,683.67,0.75533314]
[1748524374298,0.9968908,684.57,683.75,0.46279435]
[1748524374502,0.9968908,684.57,683.73,0.46279435]
[1748524374802,0.9968908,684.57,683.76,0.505]
[1748524374996,0.9968908,684.57,683.76,0.96779435]
[1748524375202,0.9968908,684.57,683.76,0.505]
[1748524388610,0.9968908,684.57,683.76,0.79750029]
[1748524388809,0.9968908,684.57,683.77,0.29249601]
[1748524390312,0.9968908,684.57,683.78,0.46217196]
[1748524390513,0.9968908,684.57,683.79,0.29248745]
[1748524390710,0.9968908,684.57,683.83,0.46217196]
[1748524390911,0.9968908,684.57,683.84,0.29246607]
[1748524397423,0.9968908,684.57,683.85,0.498]
[1748524397620,0.9968908,684.57,683.86,0.29245752]
[1748524415631,0.9968908,684.57,683.88,0.46217196]
[1748524415836,0.9968908,684.57,683.86,0.75462948]
[1748524416032,0.9968908,684.57,683.86,0.29245752]
[1748524416335,0.9968908,684.57,684.03,0.46217196]
[1748524416536,0.9968908,684.57,684.04,0.29238056]
[1748524418133,0.9968908,684.57,684.04,0.75455252]
[1748524418338,0.9968908,684.57,684.04,0.29238056]
[1748524419435,0.9968908,684.57,684.05,0.407]
[1748524419739,0.9968908,684.57,684.06,0.29237201]
[1748524423342,0.9968908,684.57,684.11,0.46217196]
[1748524423641,0.9968908,684.57,684.12,0.29234637]
[1748524424041,0.9968908,684.57,684.31,0.46217196]
[1748524424242,0.9968908,684.57,684.32,0.29226093]
[1748524455369,0.9968908,684.57,684.33,0.358]
[1748524455570,0.9968908,684.57,684.34,0.29225238]
[1748524469188,0.9946703,685.66,684.46,0.46217196]
[1748524469583,0.9946703,685.66,684.41,0.46217196]
[1748524469788,0.9946703,685.66,684.42,0.29221822]